[Event "45th FIDE Olympiad 2024"]
[Site "Budapest"]
[Date "2024.09.11"]
[Round "1.189"]
[White "Fawzy, Adham"]
[Black "Hasford, John Kojo"]
[Result "1-0"]
[ECO "B09"]
[WhiteElo "2507"]
[BlackElo "1956"]
[Annotator "TA"]
[PlyCount "77"]
[EventDate "2024.09.05"]
[EventType "team-tourn"]
[EventCountry "HUN"]
[SourceTitle "playchess.com"]
[Source "ChessBase"]
[SourceQuality "1"]
[WhiteTeam "Egypt"]
[BlackTeam "Ghana"]
[WhiteTeamCountry "EGY"]
[BlackTeamCountry "GHA"]
[TimeControl "40/5400+30:1800+30"]

{[%evp 11,77,79,64,44,43,42,56,47,60,67,74,75,75,72,74,66,69,52,58,57,110,108,117,120,143,145,158,123,142,119,202,119,137,137,261,268,252,172,158,177,218,215,206,212,296,300,296,219,264,268,326,311,356,345,340,307,596,522,529,525,1395,1340,2690,2555,1655,1541,29994,685]} 1. e4 d6 2. d4 Nf6 3. Nc3 g6 4. f4 Bg7 5. Nf3 c6 6. Bd3 O-O 7. h3 Na6 8. O-O Nb4 9. Be2 {White is slightly better.} d5 10. e5 {[%cal Oa2a3] a3! would now be deadly.} Ne4 11. Nxe4 dxe4 12. Ng5 f5 {[#]} 13. exf6 $1 exf6 14. Bc4+ Nd5 15. Nxe4 f5 (15... Re8 $14 16. Nc5 b6) 16. Ng5 $16 {[%cal Be4g5,Bg5f3,Bf3e5,Be5g6][%mdl 32]} Qb6 17. c3 h6 18. Nf3 Be6 {[%cal Od5f4]} 19. Re1 Rae8 {[%cal Od5f4]} 20. Bb3 Kh7 (20... c5 $16) 21. Kh1 (21. c4 $18) 21... Qc7 22. Ne5 Nf6 {[#]} (22... Bxe5 $16 {was worth a try.} 23. dxe5 Qe7) 23. Nxg6 $1 $18 {[%mdl 512]} Kxg6 24. Rxe6 Rxe6 25. Bxe6 {Strongly threatening g4.} Ne4 26. Qf3 {Prevents Nf2+. Threatens to win with g4.} Qe7 27. Bb3 Qh4 28. Be3 Re8 29. Bc2 h5 30. Kg1 Bh6 31. Rd1 Nf6 32. c4 Ne4 33. d5 Qf6 (33... cxd5 {keeps fighting.} 34. cxd5 Nd6) 34. dxc6 Qxc6 35. Rd5 Qxc4 {[#]} 36. Rxf5 {[%mdl 512]} Kxf5 (36... Kg7 37. Qxh5) 37. Qxh5+ Kf6 38. Qxe8 Qxc2 39. Bd4+ {Weighted Error Value: White=0.15 (very precise) /Black=0.62.  Mistake:       	White=1     	Black=4      Inaccurate:     	White=1     	Black=3      OK:         	White=18    	Black=4      Best:        	White=1     	Black=2      Strong:       	White=1     	---        Brilliant:      	White=2     	---} (39. Bxa7 {gets mated.} Qd1+ (39... Bxf4 $2 {is the wrong capture.} 40. Bd4+ Kg5 41. Qe7+ Kh6 42. Qg7+ Kh5 43. Qg4+ Kh6 44. Qxf4+ $18) 40. Kh2 Bxf4+ 41. g3 Bxg3+ (41... Nxg3 42. Qf8+ Kg5 43. Qe7+ Kf5 44. Qf7+ Kg5 45. Qg7+ Kh5 46. Qh8+ Kg5 47. Qg7+ Kh5 48. Qf7+ Kg5 49. Qg7+ $11) 42. Kg2 Qe2+ 43. Kg1 Bh2+ 44. Kh1 Ng3#) 1-0

[Event "45th FIDE Olympiad 2024"]
[Site "Budapest"]
[Date "2024.09.11"]
[Round "1.190"]
[White "Anquandah, Francis Eric"]
[Black "Wageih, Kareim"]
[Result "1/2-1/2"]
[ECO "B17"]
[WhiteElo "1941"]
[BlackElo "2402"]
[Annotator "ChessBase"]
[PlyCount "141"]
[EventDate "2024.09.05"]
[EventType "team-tourn"]
[EventCountry "HUN"]
[SourceTitle "playchess.com"]
[Source "ChessBase"]
[SourceQuality "1"]
[WhiteTeam "Ghana"]
[BlackTeam "Egypt"]
[WhiteTeamCountry "GHA"]
[BlackTeamCountry "EGY"]
[TimeControl "40/5400+30:1800+30"]

1. e4 c6 2. d4 d5 3. Nd2 dxe4 4. Nxe4 Nd7 5. Nf3 Ngf6 6. Bd3 Nxe4 7. Bxe4 Nf6 8. Qe2 Nxe4 9. Qxe4 Qd5 10. Qxd5 cxd5 11. Bf4 Bf5 12. c3 e6 13. O-O f6 14. Rfe1 g5 15. Bg3 h5 16. h3 h4 17. Bh2 Kf7 18. Nd2 Rc8 19. Nf1 Be7 20. Ne3 Bg6 21. f4 gxf4 22. Bxf4 Be4 23. Ng4 b5 24. a3 Ke8 25. Re3 Rg8 26. Re2 Rg6 27. Ne3 f5 28. Kh2 Kd7 29. Rg1 Rcg8 30. g4 Bf3 31. Rf2 fxg4 32. hxg4 Bxg4 33. Rfg2 Bf5 34. Rxg6 Rxg6 35. Rxg6 Bxg6 36. Ng4 Be8 37. Kh3 Kc6 38. Ne5+ Kb6 39. b4 Bh5 40. Nd7+ Kc6 41. Ne5+ Kb6 42. Nd7+ Kc6 43. Ne5+ Kb7 44. Nd7 Bg6 45. Ne5 Bf5+ 46. Kh2 a5 47. Nf7 a4 48. Bg5 Bxg5 49. Nxg5 Kc7 50. Nf3 h3 51. Kg3 Kd6 52. Ne5 Ke7 53. Nc6+ Kf6 54. Ne5 Kg5 55. Nf3+ Kg6 56. Ne5+ Kf6 57. Nd7+ Kg5 58. Ne5 Kh5 59. Nd7 Kh6 60. Ne5 Kg5 61. Nf3+ Kf6 62. Ne5 Bc2 63. Kxh3 Kf5 64. Kg3 Ke4 65. Kf2 Bd3 66. Nd7 Bc4 67. Nc5+ Kf5 68. Ke3 Bf1 69. Nd7 Bc4 70. Nc5 Bf1 71. Nd7 1/2-1/2

[Event "45th FIDE Olympiad 2024"]
[Site "Budapest"]
[Date "2024.09.11"]
[Round "1.191"]
[White "Wafa, Hamed"]
[Black "Anhwere, Bernard"]
[Result "1-0"]
[ECO "B66"]
[WhiteElo "2368"]
[BlackElo "1893"]
[Annotator "ChessBase"]
[PlyCount "57"]
[EventDate "2024.09.05"]
[EventType "team-tourn"]
[EventCountry "HUN"]
[SourceTitle "playchess.com"]
[Source "ChessBase"]
[SourceQuality "1"]
[WhiteTeam "Egypt"]
[BlackTeam "Ghana"]
[WhiteTeamCountry "EGY"]
[BlackTeamCountry "GHA"]
[TimeControl "40/5400+30:1800+30"]

1. e4 c5 2. Nc3 d6 3. Nf3 Nc6 4. d4 cxd4 5. Nxd4 Nf6 6. Bg5 e6 7. Qd2 a6 8. Nxc6 bxc6 9. O-O-O Qb6 10. Bc4 Rb8 11. Bb3 Be7 12. f4 d5 13. Rhe1 Qb7 14. f5 h6 15. Bh4 O-O 16. e5 Ne4 17. Rxe4 dxe4 18. f6 Bb4 19. fxg7 Kxg7 20. Qf4 Be7 21. Bf6+ Bxf6 22. Qxf6+ Kh7 23. Nxe4 c5 24. c4 Rg8 25. Nxc5 Rg6 26. Nxb7 Rxf6 27. Bc2+ Rg6 28. Nc5 Bb7 29. Rd7 1-0

[Event "45th FIDE Olympiad 2024"]
[Site "Budapest"]
[Date "2024.09.11"]
[Round "1.192"]
[White "Fomevor, Cephas Clinton"]
[Black "Sadek, Sameh"]
[Result "0-1"]
[ECO "D10"]
[WhiteElo "1873"]
[BlackElo "2269"]
[Annotator "ChessBase"]
[PlyCount "104"]
[EventDate "2024.09.05"]
[EventType "team-tourn"]
[EventCountry "HUN"]
[SourceTitle "playchess.com"]
[Source "ChessBase"]
[SourceQuality "1"]
[WhiteTeam "Ghana"]
[BlackTeam "Egypt"]
[WhiteTeamCountry "GHA"]
[BlackTeamCountry "EGY"]
[TimeControl "40/5400+30:1800+30"]

1. d4 d5 2. c4 c6 3. Nc3 dxc4 4. e3 b5 5. a4 b4 6. Ne4 Qd5 7. Nd2 Ba6 8. Qc2 c3 9. bxc3 Bxf1 10. Kxf1 bxc3 11. Qxc3 Nf6 12. Ba3 Nbd7 13. Ne2 Rc8 14. Nf4 Qf5 15. Nd3 Nd5 16. e4 Nxc3 17. exf5 g6 18. Bb2 Nd5 19. fxg6 hxg6 20. g3 Bg7 21. Kg2 Rb8 22. Rab1 O-O 23. Rhc1 Rfc8 24. Ne5 Nxe5 25. dxe5 Rb4 26. Rc4 Rcb8 27. Rxb4 Rxb4 28. Ba1 Rxa4 29. Rb8+ Bf8 30. Nb3 Rb4 31. Rxb4 Nxb4 32. Bd4 a6 33. e6 fxe6 34. Na5 Kf7 35. Bc5 Nd3 36. Bb6 c5 37. Kf1 e5 38. f3 e6 39. Ke2 Nb4 40. Nc4 Nc6 41. Bc7 Bg7 42. Kd3 Ke8 43. Ke4 Bf6 44. h4 Bd8 45. Bxe5 Nxe5 46. Nxe5 Bf6 47. Nxg6 a5 48. Kd3 e5 49. h5 Kf7 50. Kc4 a4 51. Nh4 Bxh4 52. gxh4 Kg7 0-1

[Event "45th FIDE Olympiad 2024"]
[Site "Budapest"]
[Date "2024.09.11"]
[Round "1.193"]
[White "Hemam, Moulaye Brahim"]
[Black "Dardha, Daniel"]
[Result "0-1"]
[ECO "A50"]
[WhiteElo "1977"]
[BlackElo "2603"]
[Annotator "TA"]
[PlyCount "106"]
[EventDate "2024.09.05"]
[EventType "team-tourn"]
[EventCountry "HUN"]
[SourceTitle "playchess.com"]
[Source "ChessBase"]
[SourceQuality "1"]
[WhiteTeam "Mauritania"]
[BlackTeam "Belgium"]
[WhiteTeamCountry "MAU"]
[BlackTeamCountry "BEL"]
[TimeControl "40/5400+30:1800+30"]

{[%evp 16,106,-9,-43,-25,-62,-54,-52,-37,-33,-48,-60,-58,-57,-53,-65,-60,-68,-52,-55,-65,-91,-87,-88,-81,-98,-96,-85,-87,-110,-112,-113,-113,-112,-111,-142,-139,-141,-144,-137,-126,-125,-125,-137,-127,-245,-235,-259,-273,-278,-274,-260,-273,-263,-263,-286,-280,-313,-308,-343,-302,-360,-290,-436,-364,-455,-445,-646,-642,-637,-620,-598,-593,-753,-753,-745,-737,-738,-738,-731,-645,-762,-758,-762,-720,-890,-888,-12801,-636,-12463,-6104,-5467,-4682]} 1. d4 Nf6 2. Nf3 b6 3. g3 Bb7 4. Bg2 g6 5. O-O Bg7 6. c4 O-O 7. Nc3 Ne4 8. Qc2 Nxc3 9. bxc3 Nc6 10. Nh4 e6 11. Rb1 Na5 {Black is slightly better.} 12. Bxb7 Nxb7 13. c5 d6 14. cxd6 cxd6 15. Ba3 Na5 16. e4 Qd7 17. Nf3 Rac8 18. Bb4 {Black keeps a firm grip on the game.} Nc4 19. Nd2 {[%cal Oe4e5]} Rfd8 20. Nxc4 Rxc4 21. Qb3 Rdc8 22. Rfd1 Qc6 23. d5 exd5 24. Rxd5 Bxc3 25. Rxd6 Qxe4 26. Bxc3 Rxc3 27. Qd1 Rc2 28. Rd4 Qe5 {Black has more active pieces.} 29. a4 Kg7 30. Qd3 (30. Rd5 $17 Qc3 31. Qd4+ Qxd4 32. Rxd4) 30... R8c3 $40 {[%mdl 128] Black attacks with force.} 31. Qe4 Qxe4 32. Rxe4 {[%mdl 4096] Endgame. KRR-KRR} Rf3 33. Rf1 Ra2 34. Kg2 Rf5 35. g4 {[#]} Ra5 36. h3 R5xa4 37. Re7 g5 38. Rb7 Rb4 {...a5 is the strong threat.} 39. Kg3 (39. Re1 {was necessary.}) 39... a5 40. Rd1 Rb3+ {Black is clearly winning.} 41. f3 (41. Kg2 $142 Rbb2 42. Kg3 Rxf2 43. Rxb6 Rg2+ 44. Kf3) 41... Rbb2 42. Rg1 {Inhibits Rg2+.} a4 43. h4 h6 44. hxg5 hxg5 45. Rd7 a3 46. Rd5 f6 {[#] Hoping for ...Rd2.} 47. Rd3 b5 {Strongly threatening ...Kg6.} 48. f4 gxf4+ 49. Kxf4 b4 {aiming for ...Rf2+.} 50. g5 Rf2+ 51. Ke3 Rae2+ 52. Kd4 Rd2 53. gxf6+ Kxf6 {Weighted Error Value: White=0.29 (precise) /Black=0.07 (flawless) .  Mistake:       	White=3     	---        Inaccurate:     	White=2     	---        OK:         	White=10    	Black=14     Best:        	---       	Black=3} 0-1

[Event "45th FIDE Olympiad 2024"]
[Site "Budapest"]
[Date "2024.09.11"]
[Round "1.194"]
[White "Maerevoet, Sim"]
[Black "Yahi, Mohamed Salem"]
[Result "1-0"]
[ECO "C10"]
[WhiteElo "2432"]
[BlackElo "1868"]
[Annotator "TA"]
[PlyCount "61"]
[EventDate "2024.09.05"]
[EventType "team-tourn"]
[EventCountry "HUN"]
[SourceTitle "playchess.com"]
[Source "ChessBase"]
[SourceQuality "1"]
[WhiteTeam "Belgium"]
[BlackTeam "Mauritania"]
[WhiteTeamCountry "BEL"]
[BlackTeamCountry "MAU"]
[TimeControl "40/5400+30:1800+30"]

{[%evp 9,61,-2,0,0,11,9,32,30,21,0,13,0,74,66,207,205,209,223,219,219,212,212,229,229,210,210,208,211,225,220,214,208,727,726,737,738,817,820,847,880,868,855,868,847,891,879,778,700,1061,1033,29977,29978,29975,29972]} 1. e4 e6 2. d4 d5 3. Nc3 dxe4 4. Nxe4 Nd7 {[%cal Bb8d7,Bd7f6,Bf6e4][%mdl 32]} 5. g4 {[%cal Bg2g4,Bg4g5][%mdl 32]} Ngf6 6. Nxf6+ Nxf6 7. g5 Ne4 {[%cal Od8d5]} 8. Qd3 {White is slightly better.} Nd6 9. Bf4 Nf5 {[%cal Of8d6]} 10. Nf3 c5 (10... Bd6 $11 11. Bd2 O-O) 11. O-O-O $16 Be7 {[#]} (11... cxd4 $14 12. Qe4 (12. Nxd4 Nxd4 13. Qxd4 Qxd4 $16) 12... Bc5) 12. Qb5+ $1 $18 Bd7 13. Qxb7 c4 14. Ne5 {Strongly threatening Nxd7.} Nd6 15. Qxd7+ Qxd7 16. Nxd7 Kxd7 {[%cal Be8d7,Bd7c7,Bc7d6,Bd6e5][%mdl 32]} 17. d5 {Threatens to win with dxe6+.} e5 18. Bh3+ Kc7 19. Bxe5 Bxg5+ {Black is weak on the light squares} 20. f4 f6 {[#]} (20... Bf6 21. Rhe1 a5) 21. Bxd6+ Kxd6 22. fxg5 fxg5 23. Rhe1 Rae8 24. Re6+ Rxe6 25. dxe6+ {[%mdl 4096] Endgame. KRB-KR} Ke5 26. Rd7 h5 27. e7 Re8 28. Bf1 Kf6 29. Rxa7 Rxe7 30. Rxe7 Kxe7 31. Bxc4 {Black got outplayed after the opening.   Weighted Error Value: White=0.08 (flawless) /Black=0.69.  Mistake:       	---       	Black=3      OK:         	White=7     	Black=5      Best:        	White=1     	Black=1      Strong:       	White=1     	---} 1-0

[Event "45th FIDE Olympiad 2024"]
[Site "Budapest"]
[Date "2024.09.11"]
[Round "1.195"]
[White "Abdellahi, Khaled Abdellahi"]
[Black "Hovhannisyan, Mher"]
[Result "1/2-1/2"]
[ECO "C13"]
[WhiteElo "1894"]
[BlackElo "2414"]
[Annotator "ChessBase"]
[PlyCount "59"]
[EventDate "2024.09.05"]
[EventType "team-tourn"]
[EventCountry "HUN"]
[SourceTitle "playchess.com"]
[Source "ChessBase"]
[SourceQuality "1"]
[WhiteTeam "Mauritania"]
[BlackTeam "Belgium"]
[WhiteTeamCountry "MAU"]
[BlackTeamCountry "BEL"]
[TimeControl "40/5400+30:1800+30"]

1. e4 e6 2. d4 d5 3. Nc3 Nf6 4. Bg5 dxe4 5. Nxe4 Be7 6. Bxf6 gxf6 7. Nf3 a6 8. Qd2 b5 9. O-O-O Bb7 10. Qe3 Nd7 11. Kb1 Nb6 12. Bd3 Nd5 13. Qd2 Nb4 14. Nxf6+ Bxf6 15. Qxb4 Qd6 16. Qxd6 cxd6 17. Be2 b4 18. Ne1 a5 19. Bf3 d5 20. Be2 a4 21. f4 a3 22. b3 h5 23. Nf3 h4 24. g4 hxg3 25. hxg3 Rg8 26. Rdg1 Ba6 27. Bxa6 Rxa6 28. g4 Rc6 29. g5 Bh8 30. Rh3 1/2-1/2

[Event "45th FIDE Olympiad 2024"]
[Site "Budapest"]
[Date "2024.09.11"]
[Round "1.196"]
[White "Lenaerts, Lennert"]
[Black "Abdou, Ahmed Alem"]
[Result "1-0"]
[ECO "B12"]
[WhiteElo "2300"]
[BlackElo "1897"]
[Annotator "ChessBase"]
[PlyCount "79"]
[EventDate "2024.09.05"]
[EventType "team-tourn"]
[EventCountry "HUN"]
[SourceTitle "playchess.com"]
[Source "ChessBase"]
[SourceQuality "1"]
[WhiteTeam "Belgium"]
[BlackTeam "Mauritania"]
[WhiteTeamCountry "BEL"]
[BlackTeamCountry "MAU"]
[TimeControl "40/5400+30:1800+30"]

1. e4 c6 2. d4 d5 3. e5 Bf5 4. Nd2 e6 5. Nb3 Ne7 6. Nf3 Bg4 7. h3 Bxf3 8. Qxf3 Nd7 9. Bd3 c5 10. Nxc5 Nxc5 11. dxc5 Nc6 12. Qg3 Qc7 13. Bf4 Bxc5 14. c3 h6 15. Qxg7 O-O-O 16. b4 Rdg8 17. Qf6 Be7 18. Qxf7 Nd8 19. Qh5 Qxc3+ 20. Ke2 Qb2+ 21. Bd2 Rg5 22. Rac1+ Kb8 23. Qf3 Rxe5+ 24. Kd1 Rf8 25. Qxf8 Bxf8 26. Bc3 Qxc1+ 27. Kxc1 d4 28. Bd2 Rd5 29. Re1 Kc8 30. Re4 Kd7 31. Bc4 Rf5 32. Rxd4+ Bd6 33. f4 Nc6 34. Re4 e5 35. g4 Rf8 36. b5 Nd4 37. fxe5 Ba3+ 38. Kd1 Nf3 39. Bxh6 Ke7 40. Bxf8+ 1-0

[Event "45th FIDE Olympiad 2024"]
[Site "Budapest"]
[Date "2024.09.11"]
[Round "1.197"]
[White "Panjwani, Raja"]
[Black "Hamperl, Fred"]
[Result "1-0"]
[ECO "D30"]
[WhiteElo "2460"]
[BlackElo "1977"]
[Annotator "TA"]
[PlyCount "169"]
[EventDate "2024.09.05"]
[EventType "team-tourn"]
[EventCountry "HUN"]
[SourceTitle "playchess.com"]
[Source "ChessBase"]
[SourceQuality "1"]
[WhiteTeam "Canada"]
[BlackTeam "Guernsey"]
[WhiteTeamCountry "CAN"]
[TimeControl "40/5400+30:1800+30"]

{[%evp 14,169,35,17,54,18,59,53,115,106,115,120,108,125,117,118,107,108,110,102,122,123,127,120,127,134,137,135,125,131,118,99,104,110,111,100,103,101,93,7,6,0,0,0,0,0,0,-8,-8,-8,-8,-8,-8,-8,0,0,0,0,0,0,21,29,36,8,23,23,36,11,11,11,36,36,36,36,36,36,37,37,70,72,75,37,75,82,82,14,18,8,8,8,8,8,8,8,8,8,22,15,22,0,22,8,8,8,22,22,40,46,82,82,82,82,82,82,82,82,82,82,82,82,82,82,82,82,82,82,82,82,82,82,82,22,82,82,82,82,82,82,82,82,82,82,82,41,29967,8,29971,29972,29972,8,29973,29976,29975,29976,29989,29990,29990,29991]} 1. Nf3 Nf6 2. c4 c6 3. d4 d5 4. e3 e6 5. Bd3 Nbd7 6. O-O dxc4 7. Bxc4 b5 8. Bb3 {D30: Queen's Gambit Declined: Systems without Nc3.} Bd6 9. Nc3 Bb7 10. e4 e5 (10... Be7 $14) 11. dxe5 $16 Nxe5 12. Bf4 Qe7 13. Bxe5 Bxe5 14. Nxe5 Qxe5 15. f4 Qc5+ 16. Kh1 O-O 17. e5 Rad8 18. Qf3 Nd5 19. Ne4 Qe3 $146 ({Predecessor:} 19... Qe7 20. Qg3 Kh8 21. Nd6 f5 22. Bxd5 cxd5 23. Qf2 d4 24. Qxd4 g5 25. Rad1 gxf4 26. Rxf4 {1-0 Bluebaum,M (2580)-Ali Marandi,C (2422) Wch U20 54th 2015 (13)}) 20. Nd6 $1 Qxf3 21. Rxf3 Bc8 22. Rc1 Ne7 23. f5 a5 24. a3 a4 25. Ba2 c5 26. Rxc5 (26. h3 $16 c4 27. Nxb5) 26... Nxf5 $1 $11 27. Bxf7+ Rxf7 28. Rxc8 (28. Nxc8 $2 {gets mated.} Rd1+) 28... Rxc8 29. Nxc8 Rc7 30. Rc3 Rxc3 31. bxc3 Kf7 32. Na7 Ke6 33. Nxb5 Kxe5 34. c4 Ne3 35. c5 Kd5 36. Nc3+ Kxc5 37. Nxa4+ Kc4 38. Nb6+ Kb5 39. Nd7 Ka4 40. Nc5+ Kxa3 41. Ne6 Kb4 42. Nxg7 Kc4 43. Kg1 Kd5 44. Kf2 Ng4+ 45. Kg3 Nf6 46. Kf4 Kd6 47. Kg5 Ke7 48. Nh5 Ng8 49. g4 (49. Ng3 $16) 49... Kf7 $11 50. h3 h6+ 51. Kf5 Ne7+ 52. Ke4 Kg6 53. h4 Kf7 54. Nf4 Nc6 55. Ne2 Kf6 56. Nd4 Nd8 57. Kd5 Nf7 58. Nf3 Nd8 59. Nd2 Nf7 60. Ne4+ Kg6 61. h5+ Kg7 62. Ke6 Nd8+ 63. Kf5 $1 Nf7 64. Ng3 Nd6+ 65. Ke6 Nc4 66. Nf5+ Kh7 67. Kf6 Nd2 68. Nd4 Ne4+ 69. Kf5 Nd6+ 70. Ke5 Nc4+ 71. Kf4 Nd6 72. Ne6 ({White should play} 72. Nf5 $16 Nc4 73. Ke4) 72... Nf7 (72... Kg8 $1 $11 {remains equal.}) 73. Kf5 $16 Nd6+ 74. Ke5 Ne8 75. Nd4 Nc7 76. Kd6 Na6 77. Ne6 Nb4 78. Ke7 Nd5+ $2 {[%mdl 8192]} (78... Kg8 $14) 79. Kf7 Ne3 $2 {[%mdl 8192]} (79... Kh8 $11) 80. Nf8+ Kh8 {[#]} 81. Ng6+ $1 Kh7 82. Ne5 Nd5 {[#]} 83. Nd7 $1 Nf4 84. Nf8+ Kh8 85. Ng6+ 1-0

[Event "45th FIDE Olympiad 2024"]
[Site "Budapest"]
[Date "2024.09.11"]
[Round "1.198"]
[White "Rowe, Peter"]
[Black "Thavandiran, Shiyam"]
[Result "0-1"]
[ECO "D02"]
[WhiteElo "1973"]
[BlackElo "2388"]
[Annotator "ChessBase"]
[PlyCount "65"]
[EventDate "2024.09.05"]
[EventType "team-tourn"]
[EventCountry "HUN"]
[SourceTitle "playchess.com"]
[Source "ChessBase"]
[SourceQuality "1"]
[WhiteTeam "Guernsey"]
[BlackTeam "Canada"]
[BlackTeamCountry "CAN"]
[TimeControl "40/5400+30:1800+30"]

1. d4 e6 2. Bf4 Nf6 3. e3 d5 4. Nf3 c5 5. c3 Nc6 6. Bb5 Bd7 7. a4 Nh5 8. Bg3 Nxg3 9. hxg3 Bd6 10. Nbd2 Qe7 11. Bxc6 Bxc6 12. dxc5 Bxc5 13. Ne5 Bd6 14. Nxc6 bxc6 15. Nf3 Rb8 16. Qc2 g6 17. a5 Qb7 18. Ra2 e5 19. O-O Qb3 20. Qxb3 Rxb3 21. Nd2 Rb8 22. Rc1 Kd7 23. Kf1 f5 24. Ke2 e4 25. c4 Be5 26. cxd5 cxd5 27. Rc2 Rhc8 28. Kd1 Rxc2 29. Kxc2 d4 30. Nc4 d3+ 31. Kd2 Bf6 32. f3 Rb4 33. Nb6+ 0-1

[Event "45th FIDE Olympiad 2024"]
[Site "Budapest"]
[Date "2024.09.11"]
[Round "1.199"]
[White "Preotu, Razvan"]
[Black "Brookfield, Toby"]
[Result "1-0"]
[ECO "B76"]
[WhiteElo "2451"]
[BlackElo "1872"]
[Annotator "TA"]
[PlyCount "101"]
[EventDate "2024.09.05"]
[EventType "team-tourn"]
[EventCountry "HUN"]
[SourceTitle "playchess.com"]
[Source "ChessBase"]
[SourceQuality "1"]
[WhiteTeam "Canada"]
[BlackTeam "Guernsey"]
[WhiteTeamCountry "CAN"]
[TimeControl "40/5400+30:1800+30"]

{[%evp 30,101,64,65,57,70,120,56,64,62,58,40,49,50,37,36,54,49,43,48,45,36,100,109,116,114,111,108,116,105,104,114,112,92,102,116,208,172,285,172,172,161,161,165,158,167,539,537,531,513,565,547,595,585,604,561,887,864,929,904,932,864,1725,1225,5809,5425,29976,29977,29976,29974,29978,29979,29977,29971]} 1. e4 c5 2. Nf3 d6 3. d4 cxd4 4. Nxd4 Nf6 5. Nc3 g6 6. Be3 Bg7 7. f3 O-O 8. Qd2 Nc6 9. O-O-O Nxd4 10. Bxd4 Be6 11. Kb1 Qc7 12. g4 Rfc8 13. h4 {[%cal Bh2h4,Bh4h5,Bh5h6][%mdl 32]} Qa5 14. a3 Rab8 15. h5 b5 16. h6 b4 17. Nb5 {Really sharp!} Bh8 {[#]} (17... Rxb5 $14 18. Bxb5 (18. hxg7 bxa3 19. Bxb5 Qxb5 $11) 18... Qxb5) 18. Qxb4 (18. Bxa7 $2 {is the wrong capture.} Rxb5 19. Bxb5 Qxb5 (19... Qxa7 $2 20. Qxb4 Rb8 21. g5 $19) 20. Qxb4 Qe2 $19) (18. g5 $1 $16 {[%cal Rg5f6]} Qa4 19. Rh2 (19. gxf6 bxa3 20. bxa3 Bc4 $19) 19... bxa3 20. b3 Rxb5 21. Bxb5 Qxb5 22. gxf6) 18... Qxb4 $14 {White is slightly better.} 19. axb4 {[%cal Oe4e5]} a6 20. Na7 (20. g5 $5 Nxe4 21. fxe4 axb5 22. Bxh8 Kxh8 23. b3 $11) 20... Rc7 {And now ...Ne8 would win.} 21. b5 $36 {[%mdl 2048] White is pushing.} ({Much weaker is} 21. Bxa6 Nd7 $15) 21... axb5 22. Nxb5 Rcb7 23. c4 Nd7 24. Bxh8 Kxh8 25. Be2 Ne5 ({Black should play} 25... Kg8 $14) 26. b3 $16 g5 27. Kc2 f6 28. Ra1 Kg8 {[%cal Bh8g8,Bg8f7,Bf7g6,Bg6h6][%mdl 32]} 29. Ra3 Kf7 30. Nd4 Bd7 31. Rha1 (31. Kc3 {looks sharper.} Kg6 32. Ra6 Rc7 33. Ra5) 31... Kg6 32. Ra8 Rxa8 (32... Kxh6 $16 {keeps fighting.} 33. Rxb8 Rxb8) 33. Rxa8 $18 Nc6 (33... Rc7 {was necessary.} 34. Kc3 Kxh6) 34. Nf5 Bxf5 35. exf5+ Kxh6 {[%mdl 4096] Endgame. KRB-KRN} 36. Kc3 {Repels Nd4} Kg7 37. Bd3 {Be4 would now be deadly.} Ne5 $2 (37... d5 {is more resistant.} 38. cxd5 Ne5) 38. Be4 Rc7 39. Bd5 h5 40. gxh5 Nd7 41. Re8 Nb6 42. Be6 d5 {[#]} 43. c5 $1 {[%mdl 512]} Rxc5+ {[#]} 44. Kb4 $1 Rc7 45. Kb5 Rc3 46. Kxb6 Rxb3+ 47. Kc6 Rxf3 48. Kd7 {White mates.} d4 {[%cal Bd5d4,Bd4d3][%mdl 32]} 49. Kxe7 d3 50. Rg8+ Kh6 51. Kxf6 {Weighted Error Value: White=0.10 (very precise) /Black=0.50.  Mistake:       	White=1     	Black=5      Inaccurate:     	White=1     	Black=1      OK:         	White=10    	Black=9      Best:        	White=4     	Black=5} 1-0

[Event "45th FIDE Olympiad 2024"]
[Site "Budapest"]
[Date "2024.09.11"]
[Round "1.200"]
[White "Hill, Jonathan"]
[Black "Noritsyn, Nikolay"]
[Result "0-1"]
[ECO "A48"]
[WhiteElo "1756"]
[BlackElo "2451"]
[Annotator "TA"]
[PlyCount "66"]
[EventDate "2024.09.05"]
[EventType "team-tourn"]
[EventCountry "HUN"]
[SourceTitle "playchess.com"]
[Source "ChessBase"]
[SourceQuality "1"]
[WhiteTeam "Guernsey"]
[BlackTeam "Canada"]
[BlackTeamCountry "CAN"]
[TimeControl "40/5400+30:1800+30"]

{[%evp 9,66,6,1,8,16,0,0,0,0,11,29,0,8,-272,-274,-323,-312,-302,-312,-309,-318,-314,-318,-375,-340,-336,-312,-309,-298,-315,-314,-441,-449,-466,-470,-594,-577,-631,-604,-821,-814,-847,-829,-918,-897,-1004,-1020,-1027,-1027,-984,-965,-2722,-1918,-5190,-5118,-29976,-29980,-29980,-29981]} 1. d4 Nf6 2. Nf3 g6 3. Bf4 d6 4. h3 c5 5. c3 Qb6 6. Qb3 Nc6 7. e3 cxd4 8. Qxb6 {The position is equal.} axb6 9. exd4 Nd5 10. Bh2 Bh6 {Strongly threatening ...Bc1.} 11. Be2 $2 {[%mdl 8192] [#]} (11. Bc4 $11 {and White has nothing to worry.} Be6 12. Nbd2) 11... Bc1 $1 $19 12. a3 Bxb2 13. Ra2 Bxc3+ (13... Nxc3 $2 {perishes.} 14. Rxb2 Nd5 15. O-O $18) 14. Nxc3 Nxc3 15. Ra1 Bf5 16. Bf4 Be4 17. Be3 b5 18. Kd2 Nxe2 19. Kxe2 Kd7 20. Nh4 (20. Rhd1 $142) 20... Ra4 {[%cal Oh8a8]} 21. Rhd1 Rha8 {[%cal Ob5b4]} 22. f3 Bd5 ({Stronger than} 22... Rxa3 23. Rxa3 Bxf3+ (23... Rxa3 24. fxe4 Na5 25. Bd2 $16) 24. Nxf3 $11) 23. Kf2 b4 24. Bc1 bxa3 25. Rd3 a2 26. Bb2 Na5 27. Ra3 Rxa3 28. Bxa3 Nc4 29. Bc1 Na3 30. Bxa3 Rxa3 31. f4 b5 {[#] ( -> ...b4)} 32. Nf3 Bxf3 33. gxf3 b4 {Black took control after the opening.   Weighted Error Value: White=0.59/Black=0.04 (flawless) .  Loses game:     	White=1     	---        Mistake:       	White=1     	---        Inaccurate:     	White=1     	---        OK:         	White=7     	Black=11     Strong:       	---       	Black=1} 0-1